fUSD/lending_fUSD_20260617
["ID","MTS","AMOUNT","RATE_DAILY","PERIOD"]
[425281211,1781641844000,-197.60153113,0.00027041,7]
[425281202,1781641844000,-23159.85,0.00026568,7]
[425281213,1781641844000,-191.38030484,0.00027041,7]
[425281209,1781641844000,-154.86830088,0.00027041,7]
[425281229,1781641844000,-160.84867356,0.0002708,7]
[425281223,1781641844000,-152.70214451,0.00027077,7]
[425281222,1781641844000,-193.02661076,0.00027077,7]
[425281220,1781641844000,-169.96981039,0.00027066,7]
[425281228,1781641844000,-189.51282477,0.0002708,7]
[425281215,1781641844000,-174.64827859,0.00027066,7]
[425281214,1781641844000,-189.97214289,0.00027041,7]
[425281217,1781641844000,-154.54525273,0.00027066,7]
[425281216,1781641844000,-183.88438179,0.00027066,7]
[425281219,1781641844000,-188.83188565,0.00027066,7]
[425281292,1781641845000,-1000.0,0.00027397,2]
[425281285,1781641845000,-864.92,0.00027397,2]
[425281289,1781641845000,-1000.0,0.00027397,2]
[425281291,1781641845000,-1000.0,0.00027397,2]
[425281290,1781641845000,-1000.0,0.00027397,2]
[425281284,1781641845000,-864.92,0.00027397,2]
[425281293,1781641845000,-1000.0,0.00027397,2]
[425281288,1781641845000,-1000.0,0.00027397,2]
[425281287,1781641845000,-865.03153067,0.00027397,2]
[425281286,1781641845000,-864.92,0.00027397,2]
[425281283,1781641845000,-864.92,0.00027397,2]
[425281294,1781641845000,-1000.0,0.00027397,2]
[425281304,1781641845000,-1000.0,0.00027397,2]
[425281305,1781641845000,-1000.0,0.00027397,2]
[425281296,1781641845000,-1000.0,0.00027397,2]
[425281299,1781641845000,-1000.0,0.00027397,2]
[425281280,1781641845000,-864.92,0.00027397,2]
[425281300,1781641845000,-1000.0,0.00027397,2]
[425281301,1781641845000,-1000.0,0.00027397,2]
[425281253,1781641845000,-3324.8,0.000272,2]
[425281298,1781641845000,-1000.0,0.00027397,2]
[425281302,1781641845000,-1000.0,0.00027397,2]
[425281295,1781641845000,-1000.0,0.00027397,2]
[425281303,1781641845000,-1000.0,0.00027397,2]
[425281297,1781641845000,-1000.0,0.00027397,2]
[425281282,1781641845000,-864.92,0.00027397,2]
[425281317,1781641845000,-1000.0,0.00027397,2]
[425281279,1781641845000,-864.92,0.00027397,2]
[425281256,1781641845000,-2884.75459676,0.00027352,2]
[425281254,1781641845000,-1627.47,0.000272,7]
[425281257,1781641845000,-2802.28,0.00027354,7]
[425281255,1781641845000,-524.95,0.00027253,2]
[425281258,1781641845000,-394.0,0.00027365,7]
[425281259,1781641845000,-5406.9,0.0002738,2]
[425281260,1781641845000,-300.0,0.00027396,10]
[425281261,1781641845000,-300.0,0.00027396,10]
[425281263,1781641845000,-926.89355088,0.00027397,2]
[425281271,1781641845000,-864.92,0.00027397,2]
[425281265,1781641845000,-864.92,0.00027397,2]
[425281266,1781641845000,-864.92,0.00027397,2]
[425281262,1781641845000,-926.87,0.00027397,2]
[425281264,1781641845000,-864.92,0.00027397,2]
[425281267,1781641845000,-864.92,0.00027397,2]
[425281270,1781641845000,-864.92,0.00027397,2]
[425281269,1781641845000,-864.92,0.00027397,2]
[425281268,1781641845000,-864.92,0.00027397,2]
[425281272,1781641845000,-864.92,0.00027397,2]
[425281275,1781641845000,-864.92,0.00027397,2]
[425281281,1781641845000,-864.92,0.00027397,2]
[425281274,1781641845000,-864.92,0.00027397,2]
[425281276,1781641845000,-864.92,0.00027397,2]
[425281273,1781641845000,-864.92,0.00027397,2]
[425281277,1781641845000,-864.92,0.00027397,2]
[425281278,1781641845000,-864.92,0.00027397,2]
[425281307,1781641845000,-1000.0,0.00027397,2]
[425281313,1781641845000,-1000.0,0.00027397,2]
[425281308,1781641845000,-1000.0,0.00027397,2]
[425281339,1781641845000,-2257.764109,0.00027397,2]
[425281342,1781641845000,-500.0,0.00027397,2]
[425281341,1781641845000,-500.0,0.00027397,2]
[425281344,1781641845000,-500.0,0.00027397,2]
[425281343,1781641845000,-500.0,0.00027397,2]
[425281346,1781641845000,-151.0,0.00027397,2]
[425281347,1781641845000,-500.0,0.00027397,2]
[425281348,1781641845000,-575.479373,0.00027397,2]
[425281345,1781641845000,-500.0,0.00027397,2]
[425281349,1781641845000,-575.479373,0.00027397,2]
[425281352,1781641845000,-500.0,0.00027397,15]
[425281340,1781641845000,-500.0,0.00027397,2]
[425281351,1781641845000,-575.479373,0.00027397,2]
[425281362,1781641845000,-151.0,0.00027397,2]
[425281354,1781641845000,-500.0,0.00027397,15]
[425281356,1781641845000,-500.0,0.00027397,15]
[425281361,1781641845000,-151.0,0.00027397,2]
[425281358,1781641845000,-502.58377949,0.00027397,15]
[425281357,1781641845000,-151.0,0.00027397,2]
[425281355,1781641845000,-500.0,0.00027397,15]
[425281359,1781641845000,-151.0,0.00027397,2]
[425281360,1781641845000,-151.0,0.00027397,2]
[425281363,1781641845000,-1000.0,0.00027397,2]
[425281306,1781641845000,-1000.0,0.00027397,2]
[425281353,1781641845000,-500.0,0.00027397,15]
[425281350,1781641845000,-575.479373,0.00027397,2]
[425281318,1781641845000,-1000.0,0.00027397,2]
[425281335,1781641845000,-151.0,0.00027397,2]
[425281309,1781641845000,-1000.0,0.00027397,2]
[425281310,1781641845000,-1000.0,0.00027397,2]
[425281316,1781641845000,-1000.0,0.00027397,2]
[425281311,1781641845000,-1000.0,0.00027397,2]
[425281312,1781641845000,-1000.0,0.00027397,2]
[425281314,1781641845000,-1000.0,0.00027397,2]
[425281315,1781641845000,-1000.0,0.00027397,2]
[425281322,1781641845000,-1000.0,0.00027397,2]
[425281319,1781641845000,-1000.0,0.00027397,2]
[425281320,1781641845000,-1000.0,0.00027397,2]
[425281327,1781641845000,-500.0,0.00027397,2]
[425281325,1781641845000,-500.28796441,0.00027397,2]
[425281334,1781641845000,-151.0,0.00027397,2]
[425281326,1781641845000,-500.0,0.00027397,2]
[425281338,1781641845000,-2257.764109,0.00027397,2]
[425281331,1781641845000,-490.8325641,0.00027397,2]
[425281337,1781641845000,-2257.764109,0.00027397,2]
[425281321,1781641845000,-1000.0,0.00027397,2]
[425281333,1781641845000,-151.0,0.00027397,2]
[425281332,1781641845000,-605.65135585,0.00027397,2]
[425281330,1781641845000,-500.0,0.00027397,2]
[425281329,1781641845000,-500.0,0.00027397,2]
[425281328,1781641845000,-500.0,0.00027397,2]
[425281324,1781641845000,-261.54913246,0.00027397,7]
[425281323,1781641845000,-326.46693652,0.00027397,2]
[425281336,1781641845000,-2257.764109,0.00027397,2]
[425281397,1781641846000,-1000.0,0.00027397,2]
[425281404,1781641846000,-1000.0,0.00027397,2]
[425281407,1781641846000,-1000.0,0.00027397,2]
[425281406,1781641846000,-1000.0,0.00027397,2]
[425281385,1781641846000,-1000.0,0.00027397,2]
[425281403,1781641846000,-1000.0,0.00027397,2]
[425281388,1781641846000,-1000.0,0.00027397,2]
[425281387,1781641846000,-1000.0,0.00027397,2]
[425281401,1781641846000,-1000.0,0.00027397,2]
[425281405,1781641846000,-1000.0,0.00027397,2]
[425281400,1781641846000,-1000.0,0.00027397,2]
[425281409,1781641846000,-1000.0,0.00027397,2]
[425281402,1781641846000,-1000.0,0.00027397,2]
[425281408,1781641846000,-1000.0,0.00027397,2]
[425281410,1781641846000,-252.92184,0.00027397,2]
[425281414,1781641846000,-1000.0,0.00027397,2]
[425281412,1781641846000,-1000.0,0.00027397,2]
[425281411,1781641846000,-1000.0,0.00027397,2]
[425281413,1781641846000,-1000.0,0.00027397,2]
[425281415,1781641846000,-1000.0,0.00027397,2]
[425281417,1781641846000,-252.92184,0.00027397,2]
[425281416,1781641846000,-1000.0,0.00027397,2]
[425281389,1781641846000,-1000.0,0.00027397,2]
[425281396,1781641846000,-1000.0,0.00027397,2]
[425281393,1781641846000,-1000.0,0.00027397,2]
[425281376,1781641846000,-1000.0,0.00027397,2]
[425281394,1781641846000,-1000.0,0.00027397,2]
[425281364,1781641846000,-1000.0,0.00027397,2]
[425281365,1781641846000,-1000.0,0.00027397,2]
[425281366,1781641846000,-1000.0,0.00027397,2]
[425281367,1781641846000,-1000.0,0.00027397,2]
[425281368,1781641846000,-1000.0,0.00027397,2]
[425281369,1781641846000,-1000.0,0.00027397,2]
[425281371,1781641846000,-1000.0,0.00027397,2]
[425281370,1781641846000,-1000.0,0.00027397,2]
[425281372,1781641846000,-1000.0,0.00027397,2]
[425281373,1781641846000,-1000.0,0.00027397,2]
[425281374,1781641846000,-1000.0,0.00027397,2]
[425281395,1781641846000,-1000.0,0.00027397,2]
[425281375,1781641846000,-1000.0,0.00027397,2]
[425281380,1781641846000,-1000.0,0.00027397,2]
[425281379,1781641846000,-1000.0,0.00027397,2]
[425281377,1781641846000,-1000.0,0.00027397,2]
[425281382,1781641846000,-1000.0,0.00027397,2]
[425281378,1781641846000,-1000.0,0.00027397,2]
[425281381,1781641846000,-1000.0,0.00027397,2]
[425281383,1781641846000,-1000.0,0.00027397,2]
[425281384,1781641846000,-1000.0,0.00027397,2]
[425281391,1781641846000,-1000.0,0.00027397,2]
[425281392,1781641846000,-1000.0,0.00027397,2]
[425281386,1781641846000,-1000.0,0.00027397,2]
[425281418,1781641846000,-1000.0,0.00027397,2]
[425281420,1781641846000,-1000.0,0.00027397,2]
[425281399,1781641846000,-1000.0,0.00027397,2]
[425281421,1781641846000,-1000.0,0.00027397,2]
[425281451,1781641846000,-1000.0,0.00027397,2]
[425281449,1781641846000,-1000.0,0.00027397,2]
[425281450,1781641846000,-1000.0,0.00027397,2]
[425281453,1781641846000,-975.644298,0.00027397,2]
[425281455,1781641846000,-1000.0,0.00027397,2]
[425281456,1781641846000,-1000.0,0.00027397,2]
[425281457,1781641846000,-1000.0,0.00027397,2]
[425281464,1781641846000,-1000.0,0.00027397,2]
[425281459,1781641846000,-428.2386209,0.00027397,2]
[425281463,1781641846000,-1000.0,0.00027397,2]
[425281460,1781641846000,-975.644298,0.00027397,2]
[425281454,1781641846000,-1000.0,0.00027397,2]
[425281462,1781641846000,-1000.0,0.00027397,2]
[425281461,1781641846000,-1000.0,0.00027397,2]
[425281458,1781641846000,-1000.0,0.00027397,2]
[425281466,1781641846000,-1000.0,0.00027397,2]
[425281465,1781641846000,-1000.0,0.00027397,2]
[425281467,1781641846000,-1000.0,0.00027397,2]
[425281468,1781641846000,-975.644298,0.00027397,2]
[425281469,1781641846000,-1000.0,0.00027397,2]
[425281470,1781641846000,-1000.0,0.00027397,2]
[425281471,1781641846000,-1000.0,0.00027397,2]
[425281473,1781641846000,-1000.0,0.00027397,2]
[425281472,1781641846000,-1000.0,0.00027397,2]
[425281419,1781641846000,-1000.0,0.00027397,2]
[425281448,1781641846000,-1000.0,0.00027397,2]
[425281447,1781641846000,-1000.0,0.00027397,2]
[425281474,1781641846000,-975.644298,0.00027397,2]
[425281445,1781641846000,-1000.0,0.00027397,2]
[425281446,1781641846000,-1000.0,0.00027397,2]
[425281422,1781641846000,-1000.0,0.00027397,2]
[425281423,1781641846000,-1000.0,0.00027397,2]
[425281424,1781641846000,-1000.0,0.00027397,2]
[425281425,1781641846000,-1000.0,0.00027397,2]
[425281429,1781641846000,-1000.0,0.00027397,2]
[425281427,1781641846000,-252.92184,0.00027397,2]
[425281428,1781641846000,-1000.0,0.00027397,2]
[425281430,1781641846000,-1000.0,0.00027397,2]
[425281432,1781641846000,-7004.2,0.00027397,2]
[425281435,1781641846000,-1000.0,0.00027397,2]
[425281438,1781641846000,-1000.0,0.00027397,2]
[425281426,1781641846000,-1000.0,0.00027397,2]
[425281431,1781641846000,-1000.0,0.00027397,2]
[425281433,1781641846000,-1000.0,0.00027397,2]
[425281434,1781641846000,-1000.0,0.00027397,2]
[425281436,1781641846000,-1000.0,0.00027397,2]
[425281440,1781641846000,-1000.0,0.00027397,2]
[425281437,1781641846000,-252.92184,0.00027397,2]
[425281439,1781641846000,-1000.0,0.00027397,2]
[425281452,1781641846000,-1000.0,0.00027397,2]
[425281442,1781641846000,-1000.0,0.00027397,2]
[425281441,1781641846000,-1000.0,0.00027397,2]
[425281443,1781641846000,-1000.0,0.00027397,2]
[425281444,1781641846000,-1000.0,0.00027397,2]
[425281512,1781641847000,-2991.49051684,0.000279,2]
[425281511,1781641847000,-205.85987801,0.00027899,2]
[425281510,1781641847000,-186.29357045,0.00027852,14]
[425281504,1781641847000,-5347.04,0.00027452,2]
[425281501,1781641847000,-160.0,0.000274,10]
[425281502,1781641847000,-1728.51,0.000274,7]
[425281503,1781641847000,-267.98052893,0.00027431,7]
[425281505,1781641847000,-500.0,0.000275,7]
[425281500,1781641847000,-2164.19,0.000274,7]
[425281506,1781641847000,-524.95,0.00027541,7]
[425281515,1781641847000,-228.39,0.00027978,8]
[425281521,1781641847000,-524.95,0.00028118,2]
[425281513,1781641847000,-152.0,0.00027976,5]
[425281519,1781641847000,-2164.19,0.000281,7]
[425281517,1781641847000,-600.0,0.00028,2]
[425281518,1781641847000,-6078.0,0.00028016,2]
[425281528,1781641847000,-309.73660177,0.00028322,7]
[425281531,1781641847000,-389.70696071,0.00028322,7]
[425281520,1781641847000,-1728.51,0.000281,7]
[425281524,1781641847000,-603.0,0.00028205,3]
[425281522,1781641847000,-300.0,0.00028166,10]
[425281526,1781641847000,-300.0,0.00028299,10]
[425281523,1781641847000,-2000.0,0.000282,2]
[425281498,1781641847000,-261.54913246,0.00027397,7]
[425281516,1781641847000,-160.0,0.00028,10]
[425281508,1781641847000,-27901.0,0.000278,2]
[425281486,1781641847000,-1275.729008,0.00027397,2]
[425281507,1781641847000,-603.0,0.00027671,2]
[425281525,1781641847000,-23159.85,0.0002821,7]
[425281476,1781641847000,-151.0,0.00027397,2]
[425281475,1781641847000,-151.0,0.00027397,2]
[425281478,1781641847000,-1000.0,0.00027397,20]
[425281480,1781641847000,-300.0,0.00027397,2]
[425281477,1781641847000,-1500.0,0.00027397,2]
[425281483,1781641847000,-1275.729008,0.00027397,2]
[425281479,1781641847000,-151.0,0.00027397,2]
[425281481,1781641847000,-254.13826,0.00027397,2]
[425281482,1781641847000,-449.98,0.00027397,2]
[425281484,1781641847000,-1275.729008,0.00027397,2]
[425281509,1781641847000,-524.95,0.0002783,30]
[425281485,1781641847000,-1275.729008,0.00027397,2]
[425281497,1781641847000,-185.74064842,0.00027397,7]
[425281488,1781641847000,-399.656603,0.00027397,2]
[425281493,1781641847000,-21535.18,0.00027397,10]
[425281490,1781641847000,-399.656603,0.00027397,2]
[425281496,1781641847000,-267.98052893,0.00027397,7]
[425281495,1781641847000,-207.387778,0.00027397,2]
[425281492,1781641847000,-151.0,0.00027397,2]
[425281491,1781641847000,-151.0,0.00027397,2]
[425281489,1781641847000,-399.656603,0.00027397,2]
[425281494,1781641847000,-207.387778,0.00027397,2]
[425281499,1781641847000,-405.0,0.00027397,2]
[425281487,1781641847000,-399.656603,0.00027397,2]
[425281527,1781641847000,-365.68877964,0.00028322,7]
[425281514,1781641847000,-385.05,0.00027978,8]
[425281530,1781641847000,-395.20306225,0.00028322,7]
[425281563,1781641847000,-341.42359519,0.00028363,7]
[425281558,1781641847000,-321.69734711,0.00028363,7]
[425281560,1781641847000,-373.95399412,0.00028363,7]
[425281562,1781641847000,-331.63797784,0.00028363,7]
[425281564,1781641847000,-325.22254477,0.00028363,5]
[425281566,1781641847000,-318.34170349,0.00028363,7]
[425281569,1781641847000,-232.98993049,0.00028366,7]
[425281568,1781641847000,-350.64487235,0.00028363,7]
[425281567,1781641847000,-325.90481767,0.00028363,7]
[425281573,1781641847000,-301.97395304,0.00028366,7]
[425281572,1781641847000,-347.25886022,0.00028366,7]
[425281570,1781641847000,-303.92528413,0.00028366,7]
[425281574,1781641847000,-228.27393888,0.00028366,7]
[425281565,1781641847000,-393.47214374,0.00028363,7]
[425281571,1781641847000,-386.39715317,0.00028366,7]
[425281576,1781641847000,-524.95,0.00028406,7]
[425281583,1781641847000,-154.86262301,0.00028443,7]
[425281582,1781641847000,-368.33319884,0.00028443,7]
[425281584,1781641847000,-387.09029874,0.00028443,7]
[425281575,1781641847000,-246.2527603,0.00028366,7]
[425281585,1781641847000,-334.33316715,0.00028443,7]
[425281577,1781641847000,-237.60585871,0.00028443,7]
[425281578,1781641847000,-174.04359985,0.00028443,7]
[425281580,1781641847000,-348.61382733,0.00028443,7]
[425281529,1781641847000,-315.39255271,0.00028322,7]
[425281561,1781641847000,-339.99781655,0.00028363,2]
[425281559,1781641847000,-377.3696155,0.00028363,7]
[425281581,1781641847000,-319.9255127,0.00028443,7]
[425281555,1781641847000,-422.24647384,0.00028363,7]
[425281532,1781641847000,-382.76060968,0.00028322,7]
[425281537,1781641847000,-194.60308353,0.00028349,7]
[425281539,1781641847000,-309.09050545,0.00028349,7]
[425281538,1781641847000,-173.82283146,0.00028349,7]
[425281536,1781641847000,-367.76876358,0.00028349,7]
[425281533,1781641847000,-379.94428579,0.00028322,7]
[425281542,1781641847000,-249.16563065,0.00028349,7]
[425281557,1781641847000,-379.02564955,0.00028363,7]
[425281540,1781641847000,-188.95727174,0.00028349,7]
[425281534,1781641847000,-527.0,0.00028342,5]
[425281541,1781641847000,-226.81997709,0.00028349,7]
[425281544,1781641847000,-318.67046359,0.00028349,7]
[425281535,1781641847000,-349.29655719,0.00028349,7]
[425281545,1781641847000,-180.0571174,0.00028349,7]
[425281579,1781641847000,-179.37730757,0.00028443,2]
[425281554,1781641847000,-386.02334236,0.00028363,7]
[425281553,1781641847000,-244.39051253,0.0002836,7]
[425281549,1781641847000,-221.8058306,0.00028349,7]
[425281552,1781641847000,-305.40428902,0.0002836,7]
[425281556,1781641847000,-306.59534956,0.00028363,7]
[425281548,1781641847000,-358.69573343,0.00028349,7]
[425281550,1781641847000,-194.7653813,0.0002836,7]
[425281547,1781641847000,-339.93962078,0.00028349,7]
[425281546,1781641847000,-377.66377129,0.00028349,7]
[425281543,1781641847000,-186.5279999,0.00028349,5]
[425281551,1781641847000,-386.05322152,0.0002836,7]
[425281624,1781641848000,-876.603178,0.0002888,7]
[425281625,1781641848000,-194.780847,0.0002888,7]
[425281622,1781641848000,-876.603178,0.0002888,7]
[425281626,1781641848000,-151.0,0.0002888,30]
[425281614,1781641848000,-151.0,0.0002888,7]
[425281617,1781641848000,-151.0,0.0002888,7]
[425281618,1781641848000,-151.0,0.0002888,7]
[425281615,1781641848000,-151.0,0.0002888,7]
[425281616,1781641848000,-151.0,0.0002888,7]
[425281620,1781641848000,-151.0,0.0002888,7]
[425281623,1781641848000,-876.603178,0.0002888,7]
[425281641,1781641848000,-151.0,0.0002888,30]
[425281621,1781641848000,-876.603178,0.0002888,7]
[425281630,1781641848000,-151.0,0.0002888,30]
[425281628,1781641848000,-151.0,0.0002888,30]
[425281629,1781641848000,-151.0,0.0002888,30]
[425281631,1781641848000,-151.0,0.0002888,30]
[425281632,1781641848000,-151.0,0.0002888,30]
[425281633,1781641848000,-151.0,0.0002888,30]
[425281635,1781641848000,-151.0,0.0002888,30]
[425281634,1781641848000,-151.0,0.0002888,30]
[425281638,1781641848000,-151.0,0.0002888,30]
[425281636,1781641848000,-151.0,0.0002888,30]
[425281613,1781641848000,-151.0,0.0002888,7]
[425281627,1781641848000,-151.0,0.0002888,30]
[425281611,1781641848000,-470401.56935295,0.0002888,60]
[425281598,1781641848000,-2000.0,0.000287,2]
[425281612,1781641848000,-151.0,0.0002888,7]
[425281586,1781641848000,-168.54,0.00028493,2]
[425281591,1781641848000,-544.0,0.00028588,7]
[425281589,1781641848000,-227.0251855,0.00028536,7]
[425281590,1781641848000,-770.0,0.00028547,5]
[425281588,1781641848000,-5000.74745351,0.00028506,7]
[425281592,1781641848000,-2000.0,0.0002863,2]
[425281587,1781641848000,-5000.0,0.00028494,7]
[425281593,1781641848000,-529.49,0.0002863,2]
[425281595,1781641848000,-908.10074191,0.00028661,7]
[425281594,1781641848000,-203.49914047,0.0002863,2]
[425281596,1781641848000,-524.95,0.00028695,30]
[425281610,1781641848000,-300.0,0.00028879,10]
[425281597,1781641848000,-1728.51,0.000287,7]
[425281601,1781641848000,-6649.59,0.000288,2]
[425281600,1781641848000,-603.0,0.00028739,3]
[425281602,1781641848000,-2164.19,0.000288,7]
[425281603,1781641848000,-3324.8,0.000288,2]
[425281604,1781641848000,-1627.47,0.000288,7]
[425281605,1781641848000,-156.04105927,0.000288,2]
[425281607,1781641848000,-151.0,0.00028877,7]
[425281606,1781641848000,-156.28438942,0.000288,2]
[425281609,1781641848000,-300.0,0.00028879,10]
[425281608,1781641848000,-300.0,0.00028879,10]
[425281619,1781641848000,-151.0,0.0002888,7]
[425281599,1781641848000,-5528.0,0.000287,3]
[425281639,1781641848000,-151.0,0.0002888,30]
[425281637,1781641848000,-151.0,0.0002888,30]
[425281642,1781641848000,-151.0,0.0002888,30]
[425281665,1781641848000,-2257.764109,0.0002888,7]
[425281671,1781641848000,-362.718963,0.0002888,7]
[425281672,1781641848000,-362.718963,0.0002888,7]
[425281673,1781641848000,-151.0,0.0002888,7]
[425281676,1781641848000,-237.964127,0.0002888,7]
[425281675,1781641848000,-362.718963,0.0002888,7]
[425281678,1781641848000,-237.964127,0.0002888,7]
[425281680,1781641848000,-151.0,0.0002888,7]
[425281681,1781641848000,-399.656603,0.0002888,7]
[425281679,1781641848000,-237.964127,0.0002888,7]
[425281682,1781641848000,-399.656603,0.0002888,7]
[425281670,1781641848000,-151.0,0.0002888,7]
[425281685,1781641848000,-151.0,0.0002888,3]
[425281684,1781641848000,-399.656603,0.0002888,7]
[425281687,1781641848000,-151.0,0.0002888,7]
[425281688,1781641848000,-151.0,0.0002888,7]
[425281689,1781641848000,-151.0,0.0002888,7]
[425281686,1781641848000,-151.0,0.0002888,7]
[425281690,1781641848000,-193.097944,0.0002888,7]
[425281693,1781641848000,-252.92184,0.0002888,7]
[425281694,1781641848000,-252.92184,0.0002888,7]
[425281691,1781641848000,-252.92184,0.0002888,7]
[425281692,1781641848000,-252.92184,0.0002888,7]
[425281640,1781641848000,-151.0,0.0002888,30]
[425281683,1781641848000,-399.656603,0.0002888,7]
[425281674,1781641848000,-362.718963,0.0002888,7]
[425281677,1781641848000,-237.964127,0.0002888,7]
[425281668,1781641848000,-2257.764109,0.0002888,7]
[425281669,1781641848000,-151.0,0.0002888,7]
[425281647,1781641848000,-151.0,0.0002888,30]
[425281645,1781641848000,-151.0,0.0002888,30]
[425281643,1781641848000,-151.0,0.0002888,30]
[425281646,1781641848000,-151.0,0.0002888,30]
[425281649,1781641848000,-151.0,0.0002888,30]
[425281648,1781641848000,-151.0,0.0002888,30]
[425281650,1781641848000,-151.0,0.0002888,30]
[425281651,1781641848000,-151.0,0.0002888,30]
[425281653,1781641848000,-273.641047,0.0002888,30]
[425281652,1781641848000,-151.0,0.0002888,30]
[425281655,1781641848000,-684.52174,0.0002888,7]
[425281644,1781641848000,-151.0,0.0002888,30]
[425281663,1781641848000,-151.0,0.0002888,7]
[425281654,1781641848000,-684.52174,0.0002888,7]
[425281666,1781641848000,-2257.764109,0.0002888,7]
[425281664,1781641848000,-151.0,0.0002888,7]
[425281661,1781641848000,-151.0,0.0002888,7]
[425281660,1781641848000,-151.0,0.0002888,7]
[425281667,1781641848000,-2257.764109,0.0002888,7]
[425281659,1781641848000,-151.0,0.0002888,7]
[425281662,1781641848000,-151.0,0.0002888,7]
[425281657,1781641848000,-151.0,0.0002888,7]
[425281656,1781641848000,-684.52174,0.0002888,7]
[425281658,1781641848000,-684.52174,0.0002888,7]
[425281734,1781641849000,-300.0,0.00028999,10]
[425281721,1781641849000,-300.0,0.00028969,10]
[425281724,1781641849000,-40547.23100834,0.0002897,6]
[425281722,1781641849000,-300.0,0.00028969,10]
[425281725,1781641849000,-1109.0,0.00028983,30]
[425281727,1781641849000,-603.0,0.00028983,30]
[425281729,1781641849000,-524.95,0.00028983,2]
[425281726,1781641849000,-263.0,0.00028983,30]
[425281731,1781641849000,-300.0,0.00028989,10]
[425281732,1781641849000,-11233.53917483,0.0002899,7]
[425281733,1781641849000,-300.0,0.00028999,10]
[425281739,1781641849000,-1002.18745354,0.00029,2]
[425281735,1781641849000,-300.0,0.00028999,10]
[425281738,1781641849000,-41472.40405831,0.00029,2]
[425281740,1781641849000,-9999.999999,0.00029,2]
[425281737,1781641849000,-508.0,0.00029,10]
[425281741,1781641849000,-425.80933261,0.00029,2]
[425281743,1781641849000,-2325.06058451,0.00029,2]
[425281750,1781641849000,-500.0,0.00029,2]
[425281742,1781641849000,-1503.12954683,0.00029,2]
[425281745,1781641849000,-1252.1975613,0.00029,7]
[425281744,1781641849000,-54000.0,0.00029,2]
[425281720,1781641849000,-152.0,0.00028919,6]
[425281736,1781641849000,-1158.94,0.00029,2]
[425281723,1781641849000,-666.0,0.00028969,10]
[425281746,1781641849000,-500.0,0.00029,2]
[425281719,1781641849000,-151.0,0.000289,7]
[425281695,1781641849000,-151.0,0.00028897,7]
[425281696,1781641849000,-300.0,0.00028899,10]
[425281698,1781641849000,-300.0,0.00028899,10]
[425281697,1781641849000,-300.0,0.00028899,10]
[425281701,1781641849000,-200.0,0.000289,2]
[425281700,1781641849000,-200.0,0.000289,2]
[425281699,1781641849000,-235056.87734314,0.000289,2]
[425281702,1781641849000,-343.0,0.000289,2]
[425281705,1781641849000,-575.479373,0.000289,7]
[425281706,1781641849000,-575.479373,0.000289,7]
[425281703,1781641849000,-151.17445593,0.000289,2]
[425281728,1781641849000,-156.0,0.00028983,30]
[425281704,1781641849000,-575.479373,0.000289,7]
[425281718,1781641849000,-207.387778,0.000289,7]
[425281707,1781641849000,-575.479373,0.000289,7]
[425281709,1781641849000,-1275.729008,0.000289,7]
[425281713,1781641849000,-975.644298,0.000289,7]
[425281711,1781641849000,-1275.729008,0.000289,7]
[425281712,1781641849000,-975.644298,0.000289,7]